fUSD/lending_fUSD_20240609
["ID","MTS","AMOUNT","RATE_DAILY","PERIOD"]
[328886991,1717960234192,-356.69978751,0.000292,7]
[328886992,1717960234202,-356.69978751,0.000292,7]
[328886993,1717960234211,-356.69978751,0.000292,7]
[328886994,1717960234222,-356.69978751,0.000292,7]
[328886995,1717960234231,-356.69978751,0.000292,7]
[328886996,1717960234241,-356.69978751,0.000292,7]
[328886997,1717960234251,-356.69978751,0.000292,7]
[328886998,1717960234261,-218.73469509,0.000292,2]
[328886999,1717960234271,-356.69978751,0.000292,7]
[328887000,1717960234281,-356.69978751,0.000292,7]
[328887001,1717960234291,-356.69978751,0.000292,7]
[328887002,1717960234300,-356.69978751,0.000292,7]
[328887003,1717960234310,-356.69978751,0.000292,7]
[328887004,1717960234322,-356.69978751,0.000292,7]
[328887005,1717960234332,-356.69978751,0.000292,7]
[328887006,1717960234342,-356.69978751,0.000292,7]
[328887007,1717960234352,-356.69978751,0.000292,7]
[328887008,1717960234363,-356.69978751,0.000292,7]
[328887009,1717960234374,-158.71379656,0.000292,7]
[328887010,1717960234386,-158.71379656,0.000292,7]
[328887011,1717960234398,-158.71379656,0.000292,7]
[328887012,1717960234408,-158.71379656,0.000292,7]
[328887013,1717960234418,-159.21,0.000292,7]
[328887014,1717960234428,-158.78879656,0.000292,7]
[328887015,1717960234438,-158.78879656,0.000292,7]
[328887016,1717960234448,-158.78879656,0.000292,7]
[328887017,1717960234458,-158.78879656,0.000292,7]
[328887018,1717960234468,-158.78879656,0.000292,7]
[328887019,1717960234478,-158.78879656,0.000292,7]
[328887020,1717960234489,-158.78879656,0.000292,7]
[328887021,1717960234499,-158.78879656,0.000292,7]
[328887022,1717960234509,-158.78879656,0.000292,7]
[328887023,1717960234519,-158.78879656,0.000292,7]
[328887024,1717960234528,-158.78879656,0.000292,7]
[328887025,1717960234538,-158.78879656,0.000292,7]
[328887026,1717960234548,-158.78879656,0.000292,7]
[328887027,1717960234558,-158.78879656,0.000292,7]
[328887028,1717960234568,-158.78879656,0.000292,7]
[328887029,1717960234578,-158.78879656,0.000292,7]
[328887030,1717960234588,-158.78879656,0.000292,7]
[328887031,1717960234599,-150.0,0.000292,6]
[328887032,1717960234609,-1915.09069148,0.000292,2]
[328887033,1717960234619,-20249.62120483,0.000292,15]
[328887034,1717960234629,-526.96,0.00029205,2]
[328887035,1717960234638,-3525.37570964,0.0002923,2]
[328887036,1717960234648,-150.0,0.00029235,2]
[328887037,1717960234659,-150.0,0.00029247,2]
[328887038,1717960234669,-1224.24538062,0.0002925,2]
[328887039,1717960234678,-4140.55932962,0.00029272,2]
[328887040,1717960234688,-151.93,0.00029288,2]
[328887041,1717960234698,-151.93,0.00029289,2]
[328887042,1717960234708,-151.93,0.00029289,2]
[328887043,1717960234718,-151.93,0.00029289,2]
[328887044,1717960234729,-151.93,0.00029289,2]
[328887045,1717960234739,-151.93,0.00029289,2]
[328887046,1717960234750,-151.93,0.00029289,2]
[328887047,1717960234761,-151.93,0.00029289,2]
[328887048,1717960234771,-151.93,0.0002929,2]
[328887049,1717960234781,-151.93,0.0002929,2]
[328887050,1717960234791,-151.93,0.0002929,2]
[328887051,1717960234801,-151.93,0.0002929,2]
[328887052,1717960234811,-151.93,0.0002929,2]
[328887053,1717960234821,-151.93,0.0002929,2]
[328887054,1717960234831,-151.93,0.0002929,2]
[328887055,1717960234841,-151.93,0.0002929,2]
[328887056,1717960234852,-151.93,0.0002929,2]
[328887057,1717960234862,-150.0,0.00029294,2]
[328887058,1717960234872,-307.12466618,0.00029297,2]
[328887059,1717960234882,-1248.8431247,0.00029297,2]
[328887060,1717960234892,-823.62599236,0.00029297,2]
[328887061,1717960234902,-205.94174335,0.00029297,2]
[328887062,1717960234912,-1540.87811604,0.00029297,2]
[328887063,1717960234922,-161.49734637,0.00029297,2]
[328887064,1717960234932,-348.05785413,0.00029297,2]
[328887065,1717960234942,-377.88213118,0.00029297,2]
[328887066,1717960234952,-1202.89219001,0.00029297,2]
[328887067,1717960234962,-1974.36334918,0.00029297,2]
[328887068,1717960234972,-170.0800872,0.00029298,2]
[328887069,1717960234982,-155.36739299,0.00029298,2]
[328887070,1717960234992,-287.99688264,0.00029298,2]
[328887071,1717960235002,-562.00530727,0.00029298,2]
[328887072,1717960235012,-162.55805784,0.00029298,2]
[328887073,1717960235022,-2010.65603775,0.00029298,2]
[328887074,1717960235032,-155.47371377,0.00029298,2]
[328887075,1717960235042,-284.95287438,0.00029298,2]
[328887076,1717960235051,-199.44657459,0.00029298,2]
[328887077,1717960235063,-189.64135719,0.00029298,2]
[328887078,1717960235073,-766.57738448,0.00029298,2]
[328887079,1717960235087,-448.73763374,0.00029298,2]
[328887080,1717960235097,-373.14225404,0.00029298,2]
[328887081,1717960235108,-238.50139383,0.00029298,2]
[328887082,1717960235118,-176.33698456,0.00029298,2]
[328887083,1717960235129,-667.45016743,0.00029298,2]
[328887084,1717960235140,-357.24932887,0.00029298,2]
[328887085,1717960235149,-46.02531753,0.00029298,2]
[328887092,1717960238282,-250.0,0.00027834,2]
[328887093,1717960238293,-156.14740578,0.00029298,2]
[328887094,1717960238305,-204.66166311,0.00029298,2]
[328887095,1717960238318,-467.74381109,0.00029298,2]
[328887096,1717960238330,-155.19271095,0.00029298,2]
[328887097,1717960238340,-239.15757143,0.00029298,2]
[328887098,1717960238350,-370.47644568,0.00029298,2]
[328887099,1717960238362,-53.38068756,0.00029298,2]
[328887100,1717960238374,-5242.99195405,0.00029298,2]
[328887101,1717960238385,-163.47046156,0.00029298,2]
[328887102,1717960238397,-2891.33758439,0.00029298,2]
[328887103,1717960238408,-1001.87378023,0.00029298,2]
[328887109,1717960242660,-2547.95647091,0.00029298,2]
[328887110,1717960242672,-406.44,0.00029298,2]
[328887111,1717960242684,-309.12639055,0.00029298,2]
[328887112,1717960242696,-442.88999996,0.00029298,2]
[328887113,1717960242707,-500.0,0.00029298,2]
[328887114,1717960242719,-1116.44744679,0.00029298,2]
[328887115,1717960242729,-334.67239467,0.00029298,2]
[328887116,1717960242739,-157.01491943,0.00029298,2]
[328887117,1717960242749,-241.58417095,0.00029298,2]
[328887118,1717960242765,-467.44333798,0.00029298,2]
[328887119,1717960242778,-340.78144659,0.00029298,2]
[328887120,1717960242846,-377.86844017,0.00029298,2]
[328887122,1717960242858,-1219.0116262,0.00029298,2]
[328887124,1717960242868,-1621.18105363,0.00029298,13]
[328887126,1717960242881,-2201.2276,0.00029298,13]
[328887128,1717960244646,-966.10476442,0.00029298,13]
[328887132,1717960244923,-415.662,0.00029298,13]
[328887133,1717960244935,-344.18620834,0.00029298,13]
[328887134,1717960244949,-401467.73568752,0.00029298,13]
[328887135,1717960244960,-21010.15867469,0.00029299,2]
[328887136,1717960244973,-42129.30934006,0.00029299,2]
[328887137,1717960244987,-60685.21357653,0.00029299,2]
[328887138,1717960245000,-3563.04999999,0.00029299,2]
[328887139,1717960245012,-584.12480359,0.00029299,2]
[328887140,1717960245025,-2534.02923427,0.00029299,2]
[328887141,1717960245208,-11326.89075151,0.00029299,2]
[328887142,1717960245220,-15786.25,0.00029299,2]
[328887143,1717960245233,-20409.5856292,0.00029299,2]
[328887144,1717960245245,-18439.63305667,0.00029299,2]
[328887145,1717960245257,-30010.14170401,0.00029299,2]
[328887146,1717960245268,-3097.5869782,0.00029299,2]
[328887147,1717960245280,-12244.25648691,0.00029299,2]
[328887149,1717960245292,-6941.93023562,0.00029299,2]
[328887151,1717960245304,-1119.95985758,0.00029299,2]
[328887154,1717960245318,-3117.63168338,0.00029299,2]
[328887156,1717960245332,-1167.81921804,0.00029299,2]
[328887158,1717960245344,-6993.11114756,0.00029299,2]
[328887162,1717960245424,-2371.47496843,0.00029299,2]
[328887164,1717960245436,-3284.59650955,0.00029299,2]
[328887166,1717960245448,-9053.91565993,0.00029299,2]
[328887169,1717960245460,-979.67234235,0.00029299,2]
[328887229,1717960246108,-3447.55,0.00029299,2]
[328887233,1717960246120,-10811.09784793,0.00029299,2]
[328887236,1717960246132,-20583.45037417,0.00029299,2]
[328887260,1717960246373,-291.08754944,0.00029299,2]
[328887318,1717960247203,-434.81057234,0.00029199,2]
[328887319,1717960247214,-13242.29729665,0.00029299,2]
[328887320,1717960247225,-1838.169,0.00029299,2]
[328887321,1717960247238,-9259.25,0.00029299,2]
[328887322,1717960247610,-0.0165559,0.00029299,2]
[328887323,1717960247623,-13561.90603217,0.00029299,2]
[328887324,1717960247847,-138000.0,0.00029299,2]
[328887498,1717960271633,1052.68556968,0.00015,2]
[328887501,1717960345671,-2336.43414592,0.00017259,2]
[328887502,1717960347931,295.79518933,0.00017258,2]
[328887503,1717960352671,528.36349133,0.00017259,2]
[328887504,1717960355671,-185.45,0.00024384,2]
[328887505,1717960370989,-207.99496719,0.00027161,2]
[328887506,1717960371013,-226.67450997,0.00027389,5]
[328887507,1717960371036,-806.64368738,0.0002739,2]
[328887508,1717960371058,-2000.0,0.00027743,3]
[328887509,1717960371082,-193.88,0.00027755,2]
[328887510,1717960371105,-2011.37343874,0.00027832,2]
[328887511,1717960371128,-17407.39057014,0.00028,2]
[328887514,1717961361122,-942.21986682,0.00017157,2]
[328887515,1717961361145,-550.08293746,0.00017158,2]
[328887516,1717961361167,-5012.2489,0.00017159,2]
[328887517,1717961361190,-285.0,0.00017533,2]
[328887518,1717961361213,-1783.0,0.000199,2]
[328887519,1717961361235,-226.67450997,0.000201,2]
[328887520,1717961361258,-886.88225648,0.00021,2]
[328887521,1717961361280,-9717.63,0.00021,2]
[328887522,1717961361305,-150.99,0.00021,2]
[328887523,1717961361331,-168.0,0.00021433,2]
[328887524,1717961361356,-157.64,0.00024384,2]
[328887525,1717961361380,-488.15,0.00025089,2]
[328887526,1717961361402,-3615.26,0.0002632,2]
[328887527,1717961361425,-499.99,0.0002632,2]
[328887530,1717961376698,226.67450997,0.00021973,2]
[328887531,1717961380900,266.39840914,0.00026188,2]
[328887533,1717961396703,226.67450997,0.00021973,2]
[328887534,1717961405223,155.0,0.0002632,2]
[328887535,1717961407847,957.88321473,0.00025004,2]
[328887536,1717961416697,226.67450997,0.00021973,2]
[328887537,1717961417186,305.34272508,0.0002632,2]
[328887538,1717961421845,957.88321473,0.00025004,2]
[328887577,1717961434700,226.67450997,0.00021973,2]
[328887592,1717961439176,-3276.13343339,0.00026427,2]
[328887593,1717961439187,-154.73985074,0.00026445,2]
[328887594,1717961439198,-3276.13343338,0.00026464,2]
[328887595,1717961439208,-3276.13343338,0.000265,2]
[328887596,1717961439219,-87.24566732,0.00026527,2]
[328887597,1717961439234,-68.01391526,0.00026527,2]
[328887598,1717961439245,-499.99,0.00026527,2]
[328887599,1717961439257,-250.0,0.00026762,2]
[328887600,1717961439268,-250.0,0.00026771,2]
[328887601,1717961439278,-200.0,0.00026795,2]
[328887602,1717961439289,-166.02,0.00026842,3]
[328887603,1717961439301,-150.0,0.00026958,2]
[328887604,1717961439312,-367.27763613,0.00026998,2]
[328887605,1717961439544,-4272.95236387,0.00026998,2]
[328887606,1717961439555,-200.0,0.00027,2]
[328887607,1717961439567,-23890.0,0.00027024,2]
[328887608,1717961439578,-2698.2,0.0002706,2]
[328887609,1717961439588,-3455.59,0.00027123,2]
[328887610,1717961439599,-250.0,0.00027128,2]
[328887611,1717961439609,-255.74,0.00027144,2]
[328887612,1717961439619,-62.0609293,0.00027164,2]
[328887613,1717961439632,-907.87201028,0.00027164,2]
[328887614,1717961439645,-15.02706042,0.00027164,2]
[328887615,1717961439656,-154.73985074,0.00027277,2]
[328887616,1717961439667,-480.0,0.00027315,2]
[328887617,1717961439678,-488.15,0.00027353,2]
[328887618,1717961439689,-155.68,0.00027355,2]
[328887619,1717961439703,-155.25958259,0.00027376,2]
[328887620,1717961439714,-150.0,0.00027397,2]
[328887621,1717961439726,-404.91,0.0002741,2]
[328887622,1717961439739,-155.68,0.00027444,2]
[328887623,1717961439749,-155.68,0.00027533,2]
[328887624,1717961439761,-704.56,0.00027535,2]
[328887625,1717961439771,-7119.3,0.0002756,2]
[328887626,1717961439782,-1069.929,0.00027573,2]
[328887627,1717961439792,-155.68,0.00027622,2]
[328887628,1717961439803,-4378.58,0.00027697,2]
[328887629,1717961439814,-1500.0,0.000277,2]
[328887630,1717961439826,-155.68,0.00027711,2]
[328887631,1717961439836,-520.0,0.00027765,2]
[328887632,1717961439848,-166.55,0.00027788,2]
[328887633,1717961439858,-155.68,0.000278,2]
[328887634,1717961439869,-305.32,0.00027803,2]
[328887635,1717961439880,-155.68,0.00027889,2]
[328887636,1717961439891,-155.68,0.00027978,2]
[328887637,1717961439904,-745.39624274,0.00028,2]
[328887639,1717961439915,-446.97972469,0.00028,2]
[328887641,1717961439925,-180.63274468,0.00028,2]
[328887643,1717961439936,-1362.97468143,0.00028,2]
[328887645,1717961439948,-1246.7572212,0.00028,2]
[328887648,1717961439959,-362.81476569,0.00028,2]
[328887650,1717961439970,-11374.59543062,0.00028,2]
[328887655,1717961440026,779.34688681,0.00025004,2]
[328887659,1717961442379,-6407.48942711,0.00028,2]
[328887660,1717961442389,-155.68,0.00028068,2]
[328887661,1717961442400,-150.0,0.00028118,2]
[328887662,1717961442411,-155.68,0.00028157,2]
[328887663,1717961442422,-155.27,0.00028167,2]
[328887664,1717961442433,-155.27,0.00028175,2]
[328887665,1717961442443,-155.27,0.00028182,2]
[328887666,1717961442454,-155.27,0.0002819,2]
[328887667,1717961442465,-155.27,0.00028197,2]
[328887668,1717961442478,-155.27,0.00028204,2]
[328887669,1717961442488,-155.27,0.00028212,2]
[328887670,1717961442498,-155.27,0.00028219,2]
[328887671,1717961442508,-155.27,0.00028227,2]
[328887672,1717961442519,-97.72079259,0.00028234,2]
[328887673,1717961442532,-57.54920741,0.00028234,2]
[328887674,1717961442543,-155.27,0.00028242,2]
[328887675,1717961442553,-155.68,0.00028246,2]
[328887676,1717961442564,-155.27,0.00028249,2]
[328887677,1717961442575,-155.27,0.00028256,2]
[328887678,1717961442586,-155.27,0.00028264,2]
[328887679,1717961442597,-155.27,0.00028271,2]
[328887680,1717961442607,-155.27,0.00028279,2]
[328887681,1717961442618,-155.27,0.00028286,2]
[328887682,1717961442628,-1000.0,0.00028288,2]
[328887683,1717961442639,-155.27,0.00028294,2]
[328887684,1717961442650,-155.27,0.00028301,2]
[328887685,1717961442816,-155.27,0.00028308,2]
[328887686,1717961442829,-155.68,0.00028335,2]
[328887687,1717961442841,-155.68,0.00028424,2]
[328887688,1717961442852,-1374.84421199,0.00028499,2]
[328887689,1717961442862,-155.68,0.00028513,2]
[328887690,1717961442873,-167.07,0.00028584,2]
[328887691,1717961442883,-155.68,0.00028602,2]
[328887692,1717961442893,-155.68,0.00028691,2]
[328887693,1717961442904,-155.68,0.0002878,2]
[328887694,1717961442914,-1000.0,0.00028794,2]
[328887695,1717961442925,-150.0,0.00028839,2]
[328887696,1717961442936,-997.6,0.000289,2]
[328887697,1717961442946,-174.57,0.00028988,10]
[328887698,1717961442957,-872.86,0.00028988,10]
[328887699,1717961442967,-2280.0466006,0.00028998,15]
[328887700,1717961442981,-527.22836735,0.00028998,15]
[328887705,1717961443886,-423.95581672,0.00028998,15]
[328887706,1717961444702,-768.76921533,0.00028998,15]
[328887707,1717961444713,-150.0,0.00029041,2]
[328887708,1717961444724,-150.0,0.00029041,2]
[328887709,1717961444738,-150.0,0.00029041,2]
[328887710,1717961444748,-150.0,0.00029041,2]
[328887711,1717961444759,-150.0,0.00029041,2]
[328887712,1717961444771,-158.00678789,0.00029059,2]
[328887713,1717961444781,-500.0,0.00029065,2]
[328887714,1717961444792,-200.0,0.00029065,2]
[328887715,1717961444802,-161.57332437,0.00029099,15]
[328887716,1717961444814,-161.57332435,0.00029133,15]
[328887717,1717961444825,-161.57332435,0.00029166,15]
[328887718,1717961444836,-218.09,0.00029189,3]
[328887719,1717961444857,-654.27,0.00029189,3]
[328887720,1717961444871,-2500.0,0.00029198,2]
[328887721,1717961444882,-1020.20448385,0.00029199,2]
[328887722,1717961444894,-162.00616074,0.00029199,2]
[328887723,1717961444905,-2228.79754666,0.00029199,2]
[328887724,1717961444922,-3471.34407063,0.00029199,2]
[328887725,1717961444937,-4610.89889397,0.00029199,2]
[328887726,1717961444951,-504.24716892,0.00029199,2]
[328887727,1717961444964,-1315.95501179,0.00029199,2]
[328887728,1717961444976,-4533.52813826,0.000292,2]
[328887729,1717961444994,-3974.31492135,0.000292,2]
[328887730,1717961445008,-3106.1885353,0.000292,2]
[328887731,1717961445436,-517.21109704,0.000292,2]
[328887732,1717961445446,-161.57332435,0.000292,15]
[328887733,1717961445457,-214.12,0.000292,7]
[328887734,1717961445468,-171.1962462,0.000292,7]
[328887735,1717961445479,-171.1962462,0.000292,7]
[328887736,1717961445490,-171.1962462,0.000292,7]
[328887737,1717961445501,-171.1962462,0.000292,7]
[328887738,1717961445513,-158.79006207,0.000292,7]
[328887739,1717961445524,-158.79006207,0.000292,7]
[328887740,1717961445535,-54.73046967,0.000292,6]
[328887741,1717961445549,-95.26953033,0.000292,6]
[328887742,1717961445560,-730.29310181,0.000292,2]
[328887778,1717961447232,-11400.94959014,0.000292,2]
[328887780,1717961447244,-526.96,0.00029205,2]
[328887782,1717961447255,-1020.20448385,0.0002925,2]
[328887784,1717961447266,-599.29699399,0.0002927,2]
[328887786,1717961447276,-155.36004349,0.00029297,4]
[328887787,1717961447288,-468.72828225,0.00029297,2]
[328887788,1717961447299,-156.01219047,0.00029297,2]
[328887789,1717961447310,-155.0,0.00029297,2]
[328887790,1717961447321,-1276.38374304,0.00029297,2]
[328887791,1717961447333,-2398.93687731,0.00029297,2]
[328887792,1717961447343,-1243.76438717,0.00029297,2]
[328887793,1717961447356,-155.18867626,0.00029297,2]
[328887794,1717961447366,-1100.0,0.00029297,2]
[328887795,1717961447377,-877.28731666,0.00029297,6]
[328887796,1717961447390,-691.72985235,0.00029297,6]
[328887797,1717961447403,-2821.808861,0.00029297,6]
[328887798,1717961447415,-2874.13903805,0.00029297,6]
[328887799,1717961447499,-741.46297051,0.00029297,6]
[328887800,1717961447513,-15501.79901918,0.00029297,6]
[328887801,1717961447526,-1753.20098082,0.00029297,6]
[328887802,1717961447539,-422.91126348,0.00029297,6]
[328887803,1717961447766,-6503.83148737,0.00029297,6]
[328887804,1717961447779,-7131.44395908,0.00029297,6]
[328887805,1717961447793,-3830.14392929,0.00029297,6]
[328887806,1717961448025,-1060.0659,0.00029297,6]
[328887807,1717961448038,-6160.14077791,0.00029297,6]
[328887847,1717961449171,-1606.0,0.00029297,6]
[328887851,1717961449184,-434.47297619,0.00029297,6]
[328887853,1717961449197,-741.39,0.00029297,6]
[328887856,1717961449209,-317.6472,0.00029297,6]
[328887872,1717961449854,-138000.0,0.00029297,6]
[328887875,1717961449868,-87263.3128,0.00029297,6]
[328887876,1717961449882,-507.53028692,0.00029297,6]
[328887879,1717961454458,214.99923857,0.00025004,2]
[328887880,1717961455446,209.76972787,0.00025004,2]
[328887881,1717961456640,203.95,0.00024384,2]
[328887882,1717961461766,9362.71842734,0.0003,90]
[328887883,1717961472110,2368.60119743,0.00017259,2]
[328887884,1717961473647,155.0,0.00026367,2]
[328887885,1717961474110,4755.14039967,0.00025004,2]
[328887886,1717961487074,364.29041403,0.0002,2]
[328887887,1717961494888,404.3713556,0.00017259,2]
[328887888,1717961509555,4578.95039181,0.00025004,2]
[328887889,1717961511006,500.0,0.00022602,2]
[328887890,1717961511772,500.0,0.00022602,2]
[328887891,1717961511861,500.0,0.00022602,2]
[328887892,1717961512813,200.0,0.00023698,2]
[328887893,1717961513537,400.0,0.00023698,2]
[328887895,1717961523848,1219.0116262,0.00017259,2]
[328887896,1717961525872,626.38130133,0.00025004,2]
[328887897,1717961525899,687.45952491,0.00025004,2]
[328887898,1717961528407,7987.18349289,0.00025004,2]
[328887899,1717961623847,18208.69992489,0.00014,2]
[328887900,1717961623878,18399.49914244,0.00014,2]
[328887901,1717961623913,2276588.43116282,0.00014,2]
[328887902,1717961623957,2412923.24686809,0.00014,2]
[328887904,1717961651007,259.1,0.00011,2]
[328887905,1717961665139,947.82996973,0.00014,2]
[328887906,1717961666354,299.71922881,0.00014,2]
[328887907,1717961680987,945.71048165,0.00014,2]
[328887908,1717961684384,300.09032342,0.00014,2]
[328887909,1717961770885,249720.212,0.00014,2]
[328887910,1717961770914,20589.41567708,0.00014,2]
[328887911,1717961798929,308216.92369007,0.00015,2]
[328887913,1717961832883,18943.53947323,0.00015,2]
[328887920,1717962408059,20268.82653709,0.00015,2]
[328887921,1717962409289,543519.17959447,0.00015,2]
[328887922,1717962415284,362.93795279,0.00015,2]
[328887923,1717962428097,20298.55584112,0.00015,2]
[328887924,1717962430194,-2368.60119743,0.00017164,2]
[328887925,1717962430218,-888.340634,0.00017165,2]
[328887926,1717962430242,-786.24788383,0.00017251,2]
[328887927,1717962430265,-506.72413374,0.00017251,2]
[328887928,1717962430288,-1261.47243226,0.00017252,2]
[328887929,1717962430313,-407.56315179,0.00017252,2]
[328887930,1717962430337,-155.0,0.00017252,2]
[328887931,1717962430362,-238.17862197,0.00017253,2]
[328887932,1717962430386,-166.62489551,0.00017253,2]
[328887933,1717962430410,-155.0,0.00017254,2]
[328887934,1717962430434,-155.0,0.00017254,2]
[328887935,1717962430457,-4444.03789171,0.00017254,2]
[328887936,1717962430481,-3565.49368119,0.00017255,2]
[328887937,1717962431012,271434.31945002,0.00015,2]
[328887938,1717962431138,-725.66391828,0.00017255,2]
[328887939,1717962431163,-300.0,0.00019725,2]
[328887940,1717962431188,-172.23,0.00021611,2]
[328887941,1717962431213,-2625.5,0.00023635,2]
[328887942,1717962431236,-959.88938005,0.00023754,2]
[328887943,1717962431260,-11734.0,0.00024,5]
[328887944,1717962431284,-160.88,0.00024384,2]
[328887945,1717962431307,-150.99,0.00024384,2]
[328887946,1717962431331,-150.0,0.00024986,2]
[328887947,1717962431357,-1250.0,0.00025,2]
[328887948,1717962431379,-155.0,0.00025004,2]
[328887949,1717962431402,-500.0,0.00025004,2]
[328887950,1717962431426,-500.0,0.00025004,2]
[328887951,1717962431449,-500.0,0.00025004,2]
[328887952,1717962431472,-500.0,0.00025004,2]
[328887953,1717962431495,-500.0,0.00025004,2]
[328887954,1717962431518,-500.0,0.00025004,2]
[328887955,1717962431541,-500.0,0.00025004,2]
[328887956,1717962431565,-610.0,0.00025004,2]
[328887957,1717962431588,-499.99,0.00025004,2]
[328887958,1717962431615,-453.33042599,0.00026074,2]
[328887959,1717962431640,-153.04658946,0.0002609,2]
[328887960,1717962431667,-152.99039782,0.00026219,2]
[328887961,1717962431692,-1798.12,0.00026783,2]
[328887962,1717962431718,-154.78346022,0.00026845,2]
[328887963,1717962431742,-250.0,0.00026875,2]
[328887964,1717962431767,-384.0,0.00026878,2]
[328887965,1717962431793,-1300.0,0.00027,2]
[328887966,1717962431819,-150.0,0.00027,2]
[328887967,1717962431843,-492.48,0.00027014,2]
[328887968,1717962431868,-155.40657784,0.00027057,2]
[328887969,1717962431894,-154.78346022,0.00027152,2]
[328887970,1717962431920,-207.99496719,0.00027206,2]
[328887971,1717962431950,-152.99039782,0.00027214,2]
[328887972,1717962431977,-152.18,0.00027397,2]
[328887973,1717962432005,-152.99039782,0.00027493,2]
[328887974,1717962432034,-154.48715506,0.00027526,2]
[328887975,1717962432065,-154.78346022,0.00027574,2]
[328887976,1717962432094,-152.99039782,0.00027576,2]
[328887977,1717962432121,-167.01,0.00027657,2]
[328887978,1717962432148,-1302.30583545,0.00027832,2]
[328887979,1717962432313,-207.99496719,0.00027852,2]
[328887980,1717962432344,-152.99039782,0.00027925,2]
[328887981,1717962432375,-152.99039782,0.0002799,2]
[328887982,1717962432398,-173.5540602,0.00028,2]
[328887983,1717962432423,-616.0,0.0002819,2]
[328887984,1717962432449,-152.18,0.00028203,2]
[328887985,1717962432474,-254.43,0.00028236,2]
[328887986,1717962432503,-152.99039782,0.00028388,2]
[328887987,1717962432533,-152.99039782,0.00028581,2]
[328887988,1717962432563,-152.99039782,0.00028586,2]
[328887989,1717962432589,-3079.14380772,0.000288,10]
[328887990,1717962432614,-684.14,0.00028877,2]
[328887991,1717962432638,-10522.6321,0.000289,2]
[328887992,1717962432661,-1014.12,0.000289,2]
[328887993,1717962432684,-174.632,0.00028997,2]
[328887994,1717962432707,-1000.0,0.00028997,2]
[328887995,1717962432735,-258.51731894,0.00028998,2]
[328887996,1717962432763,-1235.75918821,0.00028998,2]
[328887997,1717962432788,-899.99999884,0.00029,30]
[328887998,1717962432812,-1350.0,0.00029,2]
[328887999,1717962432836,-4170.43277724,0.00029,2]
[328888000,1717962432861,-193.83670902,0.00029,2]
[328888001,1717962432886,-253.35708543,0.00029003,2]
[328888002,1717962432911,-250.17424602,0.00029006,4]
[328888003,1717962432936,-152.18,0.00029009,2]
[328888004,1717962432959,-15855.8085595,0.0002901,2]
[328888005,1717962432987,-258.51731894,0.0002902,15]
[328888006,1717962433014,-1235.75918817,0.0002902,15]
[328888007,1717962433042,-308.78343452,0.00029033,2]
[328888008,1717962433069,-258.51731894,0.00029043,15]
[328888009,1717962433095,-1235.75918817,0.00029043,15]
[328888010,1717962433122,-500.0,0.00029065,2]
[328888011,1717962433145,-200.0,0.00029065,2]
[328888012,1717962433171,-258.51731894,0.00029065,15]
[328888013,1717962433198,-1235.75918817,0.00029065,15]
[328888014,1717962433223,-436.18,0.00029087,3]
[328888015,1717962433250,-258.51731894,0.00029088,15]
[328888016,1717962433278,-1235.75918817,0.00029088,15]
[328888017,1717962433307,-712.24,0.00029096,4]
[328888018,1717962433331,-500.0,0.00029096,4]
[328888019,1717962433355,-36660.25459567,0.00029097,2]
[328888020,1717962433632,-6676.38982846,0.0001725,2]
[328888021,1717962440443,-3860.97481154,0.0001725,2]
[328888022,1717962440468,-439.33,0.00024341,2]
[328888023,1717962440493,-439.33,0.00026605,2]
[328888024,1717962440652,-439.33,0.00028869,2]
[328888025,1717962440679,-34242.25027366,0.00029097,2]
[328888026,1717962441278,362.93795279,0.00015,2]
[328888027,1717962454933,193249.94050033,0.00015,2]